bitfinex-derivatives/quotes_ETHF0:USTF0_20260203
["timestamp","ask_amount","ask_price","bid_price","bid_amount"]
[1770132542704,0.00329822,2301.9,2300.7,0.00368666]
[1770132542904,2.44282298,2301.7,2300.7,0.00368666]
[1770132543106,4.352,2301.8,2300.7,0.00368666]
[1770132543403,4.352,2301.8,2299.7,0.2176]
[1770132543404,7.18599955,2301.8,2299.7,0.2176]
[1770132543607,2.44282298,2300.5,2299.0,2.52594734]
[1770132543808,2.44282298,2300.9,2299.7,2.52594734]
[1770132544102,2.44282298,2301.1,2299.6,0.2176]
[1770132544303,2.44282298,2300.9,2299.2,2.52594734]
[1770132544609,2.44282298,2300.2,2299.2,0.00321792]
[1770132544801,2.44282298,2301.5,2300.0,2.52594734]
[1770132544999,2.44282298,2301.5,2299.8,0.21759]
[1770132545200,2.66025298,2301.5,2299.8,0.21759]
[1770132545406,2.44282298,2301.5,2300.0,2.52594734]
[1770132545707,2.44282298,2301.5,2300.7,0.2175]
[1770132545708,2.44797874,2301.5,2300.7,0.2175]
[1770132545904,2.44797874,2301.5,2299.9,2.52594734]
[1770132546105,2.44797874,2301.5,2299.9,2.74352734]
[1770132546701,2.44797874,2301.5,2299.2,0.00321792]
[1770132546907,2.44282298,2300.6,2299.2,0.00321792]
[1770132547103,2.44282298,2300.4,2299.2,0.00321792]
[1770132547507,2.44282298,2300.1,2297.8,5.00875869]
[1770132547806,9.504,2300.5,2297.7,0.21779]
[1770132547807,2.44282298,2299.4,2297.7,0.21779]
[1770132548001,2.44282298,2299.2,2297.7,0.21779]
[1770132548207,2.44282298,2299.2,2297.0,9.22516641]
[1770132548409,2.44282298,2299.2,2297.5,0.2178]
[1770132548603,2.44282298,2298.9,2297.5,0.00332959]
[1770132548913,2.44282298,2298.5,2297.4,0.21782]
[1770132549109,2.44282298,2299.1,2297.4,0.21782]
[1770132549406,2.44282298,2299.1,2297.6,2.44563032]
[1770132549908,2.44282298,2298.7,2297.6,0.00552054]
[1770132550102,2.44282298,2298.5,2297.6,0.00552054]
[1770132550506,2.44282298,2298.5,2297.0,2.22784032]
[1770132550707,2.44282298,2298.5,2296.8,0.21787]
[1770132551010,2.44282298,2298.5,2297.5,0.2178]
[1770132551310,2.44282298,2298.5,2297.1,0.21784]
[1770132551509,2.44282298,2298.5,2297.1,0.22093428]
[1770132551909,2.44282298,2298.5,2297.1,2.51171557]
[1770132552710,2.44282298,2298.5,2297.1,2.29387557]
[1770132553308,2.66053298,2298.5,2297.1,0.00309428]
[1770132553513,2.44282298,2298.5,2297.1,0.22093428]
[1770132553814,7.493,2298.6,2297.7,2.28659451]
[1770132553815,4.351,2298.6,2297.7,2.28659451]
[1770132554214,4.351,2298.6,2297.1,0.00309428]
[1770132554215,6.79382298,2298.6,2297.2,2.28659451]
[1770132554408,4.351,2298.6,2297.8,0.21778]
[1770132554616,4.351,2298.6,2297.5,2.28659451]
[1770132554817,2.44282298,2298.5,2296.5,3.76854802]
[1770132555018,2.54125713,2298.3,2297.1,0.21784]
[1770132555212,2.54125713,2298.3,2296.5,0.2179]
[1770132555413,2.54125713,2298.3,2296.7,0.21788]
[1770132555611,2.54125713,2298.3,2296.8,0.21787]
[1770132556316,2.75898713,2298.3,2296.8,0.21787]
[1770132556714,2.54125713,2298.1,2296.8,0.21787]
[1770132556915,5.132,2298.4,2295.9,4.22282591]
[1770132556916,2.54125713,2297.7,2295.9,4.22282591]
[1770132557115,2.54125713,2297.5,2295.7,0.21797]
[1770132557310,2.76454176,2297.5,2295.9,0.21796]
[1770132557613,2.76454176,2297.5,2296.3,0.21792]
[1770132557614,2.54673176,2297.5,2296.3,0.21792]
[1770132558913,2.53754384,2297.1,2295.7,0.21798]
[1770132559114,2.53754384,2296.9,2295.7,0.21798]
[1770132559314,2.53754384,2296.9,2295.3,0.21801]
[1770132559514,2.53497995,2296.6,2294.9,0.21805]
[1770132559713,2.53497995,2296.4,2294.5,0.01255435]
[1770132559912,6.88797995,2296.3,2295.2,0.21802]
[1770132560112,2.53497995,2296.2,2294.6,0.21808]
[1770132560318,2.53497995,2296.2,2294.3,0.01255435]
[1770132560718,2.53497995,2296.2,2294.8,0.21805]
[1770132561112,2.53497995,2296.2,2293.9,4.2374977]
[1770132561325,2.5301008,2295.5,2293.5,0.02399619]
[1770132561522,2.5301008,2295.3,2294.2,0.21812]
[1770132561727,2.5301008,2295.1,2294.2,0.21812]
[1770132562323,4.354,2295.2,2294.4,0.21809]
[1770132562521,4.354,2295.2,2294.5,0.21809]
[1770132562721,0.00477186,2295.5,2295.1,0.21803]
[1770132563315,6.8851008,2295.9,2295.1,0.21803]
[1770132563514,2.54209889,2295.9,2294.1,3.76854802]
[1770132563719,7.74532666,2298.9,2294.0,4.2127214]
[1770132563720,2.54209889,2296.3,2294.0,4.2127214]
[1770132564017,2.54209889,2296.1,2294.4,0.2181]
[1770132564218,2.54209889,2295.8,2294.4,0.00325137]
[1770132564523,0.00338911,2296.1,2294.4,0.00325137]
[1770132564722,0.00338911,2296.1,2295.8,0.21796]
[1770132565024,0.00338911,2296.1,2295.7,0.21798]
[1770132565822,0.00338911,2296.1,2294.4,0.00325137]
[1770132566018,0.00338911,2296.1,2295.6,0.21798]
[1770132566323,6.89809889,2297.0,2294.8,4.356]
[1770132566523,6.89809889,2297.0,2296.5,0.2179]
[1770132566823,3.90892,2297.0,2296.7,0.21788]
[1770132567023,3.90892,2297.0,2296.5,0.2179]
[1770132567423,3.91445756,2297.0,2296.5,0.22216556]
[1770132568519,3.91445756,2297.0,2296.5,0.00426556]
[1770132568726,40.8,2297.9,2296.5,0.00426556]
[1770132568727,2.54209889,2297.8,2296.5,0.00426556]
[1770132569024,2.54209889,2297.8,2297.0,0.21785]
[1770132569323,2.54209889,2297.8,2296.5,0.00426556]
[1770132569716,2.54209889,2297.8,2295.3,0.21802]
[1770132569919,2.54209889,2297.8,2297.0,0.21785]
[1770132570117,2.54209889,2297.8,2295.9,0.02404336]
[1770132570316,2.54209889,2297.8,2295.9,0.24187336]
[1770132570524,2.54209889,2297.8,2296.7,0.21788]
[1770132570724,2.52466752,2296.7,2294.8,0.46427738]
[1770132571025,2.555,2297.2,2296.2,0.21792]
[1770132571224,11.96966752,2297.3,2296.3,0.21792]
[1770132571525,2.52466752,2297.2,2296.3,0.21792]
[1770132571724,2.52466752,2297.2,2296.4,0.21791]
[1770132572025,2.52466752,2297.2,2296.3,0.00491893]
[1770132572222,2.52466752,2297.2,2296.6,0.21789]
[1770132572519,2.52466752,2297.2,2296.4,0.21791]
[1770132572719,4.356,2297.3,2296.3,0.00491893]
[1770132572919,2.52466752,2297.2,2296.3,0.00491893]
[1770132573423,2.52466752,2297.0,2295.8,0.21797]
[1770132573623,2.52466752,2297.0,2295.3,0.42182899]
[1770132573826,2.52466752,2297.0,2296.2,0.21792]
[1770132574225,2.52466752,2297.0,2295.6,0.42674792]
[1770132574425,2.52466752,2297.0,2296.2,0.21793]
[1770132574821,2.52466752,2297.4,2296.7,0.21788]
[1770132575029,2.52466752,2297.4,2296.0,0.42674792]
[1770132575425,2.52466752,2297.7,2296.8,0.21787]
[1770132575726,2.52466752,2297.7,2296.0,0.42674792]
[1770132576328,2.52466752,2297.7,2296.4,0.21791]
[1770132576518,2.52466752,2297.7,2295.6,5.03713047]
[1770132576724,2.52466752,2296.8,2295.5,0.218]
[1770132576920,2.52466752,2296.6,2295.0,0.21804]
[1770132577123,2.52466752,2296.4,2294.3,5.03713047]
[1770132577324,2.52466752,2296.1,2294.6,0.21808]
[1770132577520,2.74623273,2296.1,2294.6,0.21808]
[1770132577827,2.52466752,2295.8,2293.6,5.66340894]
[1770132578027,2.52466752,2295.6,2294.5,0.21809]
[1770132578225,2.52466752,2295.4,2293.8,5.03713047]
[1770132578520,2.52466752,2295.4,2294.6,0.21808]
[1770132578726,2.52466752,2295.4,2294.8,0.21806]
[1770132579030,4.356,2295.5,2294.9,0.21805]
[1770132579522,4.356,2295.5,2294.0,0.21813]
[1770132579523,2.52466752,2295.4,2294.0,0.21813]
[1770132579928,2.52466752,2295.4,2294.1,0.21813]
[1770132580728,2.52466752,2295.4,2293.5,0.21819]
[1770132580928,2.52466752,2295.4,2293.6,0.21818]
[1770132581326,2.52466752,2295.2,2293.6,0.21818]
[1770132582024,2.74269752,2295.2,2293.6,0.21818]
[1770132582428,2.52466752,2295.2,2293.8,0.21816]
[1770132583523,2.52466752,2295.2,2294.0,0.21814]
[1770132585031,2.52466752,2295.2,2293.4,2.76975732]
[1770132585032,2.52466752,2295.2,2294.2,0.21812]
[1770132585830,0.21805,2295.0,2293.6,0.21818]
[1770132586025,2.74272752,2294.9,2293.4,0.22196456]
[1770132586234,2.52466752,2294.7,2293.4,0.22196456]
[1770132586431,2.52466752,2294.7,2293.3,0.2182]
[1770132587032,2.52466752,2294.4,2292.7,0.21826]
[1770132587233,2.52466752,2294.2,2293.0,0.21823]
[1770132587838,2.52466752,2294.2,2292.7,0.89520159]
[1770132588033,2.52466752,2294.2,2293.1,0.21822]
[1770132588336,2.52466752,2294.2,2292.8,0.21825]
[1770132588738,2.52466752,2294.2,2292.9,0.21824]
[1770132589134,2.52466752,2294.2,2293.0,0.21823]
[1770132589531,2.52466752,2294.2,2293.2,0.21821]
[1770132589738,2.52466752,2294.2,2292.5,1.06716764]
[1770132589932,2.52466752,2293.9,2292.5,0.21828]
[1770132590134,2.52466752,2293.7,2292.5,0.21828]
[1770132590336,2.52466752,2293.7,2292.7,0.21826]
[1770132590538,5.075,2293.8,2292.3,1.06650275]
[1770132590841,2.33558717,2294.1,2293.4,0.2182]
[1770132591534,2.33558717,2294.1,2292.9,0.21824]
[1770132591734,2.33558717,2294.1,2293.0,0.21823]
[1770132592140,2.33558717,2294.1,2293.1,0.21822]
[1770132593741,2.33558717,2294.1,2293.2,0.21822]
[1770132594043,2.33558717,2294.1,2292.8,0.21825]
[1770132594244,2.33558717,2294.1,2293.1,0.21822]
[1770132594745,2.33558717,2294.1,2293.2,0.21821]
[1770132595041,2.33558717,2294.1,2293.3,0.21821]
[1770132595341,4.358,2294.3,2293.7,0.21817]
[1770132595538,2.45284082,2294.2,2293.1,0.21822]
[1770132595747,2.45284082,2294.2,2293.3,0.2182]
[1770132597442,2.45284082,2294.2,2292.9,1.07719223]
[1770132597841,4.358,2294.3,2293.8,0.21816]
[1770132598445,6.81084082,2294.3,2293.8,0.21816]
[1770132598641,2.45284082,2294.2,2293.2,1.07719223]
[1770132599046,4.358,2294.3,2293.2,1.07719223]
[1770132599248,4.358,2294.3,2293.9,0.21815]
[1770132599740,4.358,2294.3,2294.0,0.21814]
[1770132599948,2.45284082,2295.0,2294.2,0.21812]
[1770132600142,2.45284082,2295.0,2294.2,0.21287461]
[1770132600540,4.361,2295.2,2294.0,1.29429783]
[1770132600741,2.45284082,2295.1,2294.8,0.21806]
[1770132600942,1.53e-06,2295.1,2294.8,0.0053681]
[1770132601142,2.45284082,2296.3,2295.1,1.51235783]
[1770132601346,4.361,2297.0,2296.1,0.21793]
[1770132601542,4.361,2297.0,2295.5,0.218]
[1770132601743,8.7186,2297.0,2294.9,2.54779276]
[1770132602052,4.36500801,2297.0,2296.0,0.21794]
[1770132602249,45.16500801,2297.0,2296.0,0.21794]
[1770132602446,4.3576,2296.7,2295.4,2.46228233]
[1770132602645,0.00400801,2297.0,2296.9,0.21786]
[1770132602851,10.65329786,2298.3,2296.9,0.00504086]
[1770132603048,10.65329786,2298.3,2297.1,0.21784]
[1770132603347,4.3576,2298.1,2296.9,2.46732319]
[1770132603547,2.45284082,2298.1,2297.1,0.21784]
[1770132603747,2.45284082,2297.9,2296.9,0.00504086]
[1770132603952,6.81044082,2297.8,2296.9,0.00504086]
[1770132604147,0.00339718,2298.1,2297.2,2.46228233]
[1770132604850,3.04811488,2299.5,2297.2,2.46228233]
[1770132604851,2.45284082,2300.4,2298.7,0.21769]
[1770132605051,5.031,2300.8,2298.3,2.46228233]
[1770132605052,2.45284082,2299.9,2298.3,2.46228233]
[1770132605252,2.45284082,2299.9,2298.5,2.46228233]
[1770132605552,2.45284082,2299.9,2298.9,0.21767]
[1770132605747,2.45739192,2299.9,2299.0,0.21766]
[1770132605954,0.0045511,2299.9,2299.3,0.21763]
[1770132606152,0.0045511,2299.9,2299.4,2.67991233]
[1770132606352,4.359,2300.9,2299.4,2.67991233]
[1770132606353,4.359,2300.9,2299.4,2.46228233]
[1770132606550,0.22196456,2301.0,2299.4,2.46228233]
[1770132606754,2.45284082,2300.9,2299.4,0.21763]
[1770132606951,6.81044082,2300.7,2299.4,2.67991233]
[1770132607153,2.45284082,2300.7,2299.4,2.46228233]
[1770132607348,2.45826735,2300.7,2299.8,0.21759]
[1770132607555,0.00542653,2300.7,2299.9,0.21758]
[1770132607751,0.00542653,2300.7,2299.3,2.46228233]
[1770132607752,2.45826735,2300.7,2299.3,2.46228233]
[1770132607951,2.45826735,2300.7,2299.4,0.21762]
[1770132608249,2.45826735,2300.7,2298.9,0.00459823]
[1770132608250,2.45284082,2300.3,2298.9,0.00459823]
[1770132608555,2.45284082,2299.6,2298.3,0.21772]
[1770132608854,6.81044082,2298.7,2297.6,0.21779]
[1770132609054,2.45284082,2299.6,2298.8,0.21768]
[1770132609246,2.45284082,2299.4,2298.1,2.46228233]
[1770132609450,2.45284082,2299.3,2298.1,0.00427055]
[1770132609756,2.45284082,2299.2,2298.5,0.21771]
[1770132610152,4.3576,2299.1,2298.5,0.21771]
[1770132610348,2.45284082,2298.9,2298.1,0.00427055]
[1770132610551,2.45284082,2298.3,2297.4,0.21781]
[1770132610760,4.35332945,2297.9,2297.4,0.21781]
[1770132611057,6.80617027,2298.3,2297.6,0.21779]
[1770132611256,4.356,2298.8,2297.0,2.46228233]
[1770132611555,2.45284082,2298.7,2297.7,0.21779]
[1770132612049,4.35332945,2298.3,2297.7,0.21779]
[1770132612358,2.45284082,2298.0,2297.0,0.22230838]
[1770132612553,2.45284082,2298.0,2297.1,0.21785]
[1770132613250,6.80617027,2297.1,2295.7,2.68026233]
[1770132613450,2.45284082,2297.1,2295.2,0.21802]
[1770132613650,2.45284082,2296.9,2295.2,0.21802]
[1770132613851,2.45284082,2296.4,2294.5,0.21809]
[1770132614052,2.45284082,2296.1,2294.5,0.21809]
[1770132614351,2.45827922,2296.1,2294.7,0.21807]
[1770132614759,2.45284082,2295.9,2294.7,0.21807]
[1770132615052,2.45284082,2295.3,2294.5,0.00521524]
[1770132615249,2.45284082,2295.7,2294.5,0.00521524]
[1770132615453,2.45284082,2295.7,2294.9,0.21805]
[1770132615758,2.45827922,2296.1,2295.1,0.21803]
[1770132615959,40.8,2296.0,2295.1,0.21803]
[1770132616154,43.25284082,2296.0,2295.1,0.21803]
[1770132616453,6.80617027,2295.6,2294.5,2.46749757]
[1770132616654,2.45284082,2295.6,2294.5,0.00521524]
[1770132616854,2.45284082,2295.1,2293.7,2.46228233]
[1770132617054,2.45284082,2295.5,2294.6,0.21808]
[1770132617455,4.35332945,2295.3,2294.6,0.21808]
[1770132617759,2.45284082,2295.9,2294.5,2.46228233]
[1770132617960,2.45284082,2295.9,2294.5,2.46578249]
[1770132618359,2.45284082,2295.9,2295.1,0.21803]
[1770132618660,3.68399107,2295.8,2295.1,0.21803]
[1770132618853,0.0054384,2296.1,2295.1,0.21803]
[1770132619053,6.13683189,2296.0,2295.1,0.21803]
[1770132619251,0.0054384,2296.1,2295.2,0.21802]
[1770132619665,3.68399107,2295.9,2295.2,0.21802]
[1770132619857,6.13683189,2295.9,2294.5,0.00350016]
[1770132620055,2.45284082,2295.8,2294.6,0.21808]
[1770132620368,0.0054384,2296.1,2294.5,0.00350016]
[1770132620369,2.45284082,2295.4,2294.5,0.00350016]
[1770132620654,4.357,2295.3,2293.6,2.50191573]
[1770132620861,2.41525067,2295.5,2294.8,0.21806]
[1770132621371,3.68399107,2295.4,2294.9,0.21805]
[1770132621657,3.68399107,2295.4,2294.4,2.50191573]
[1770132621658,2.41525067,2295.9,2295.0,0.21804]
[1770132621955,4.3624384,2296.1,2294.4,0.2181]
[1770132621956,3.02606107,2295.4,2294.4,0.2181]
[1770132622159,2.41525067,2295.1,2293.6,2.50191573]
[1770132622462,2.41525067,2295.0,2294.0,0.21814]
[1770132622761,2.41525067,2295.7,2294.2,0.21812]
[1770132622960,2.41525067,2295.6,2294.2,0.21812]
[1770132623161,2.41525067,2294.9,2293.7,2.50191573]
[1770132623462,2.41525067,2294.9,2293.6,2.50191573]
[1770132623660,2.41525067,2294.9,2294.2,0.21812]
[1770132623856,4.357,2295.1,2294.5,0.21809]
[1770132624360,3.02606107,2295.0,2294.5,0.21809]
[1770132624958,2.41525067,2294.9,2293.2,2.50191573]
[1770132625357,2.41525067,2295.0,2294.2,0.21812]
[1770132625860,3.02606107,2294.5,2293.9,0.21815]
[1770132626061,2.41525067,2295.0,2293.9,0.21815]
[1770132626257,2.41525067,2294.4,2293.9,0.09570347]
[1770132626565,2.41525067,2294.2,2293.6,0.21818]
[1770132626959,3.02606107,2293.7,2292.6,2.50191573]
[1770132627265,0.00565482,2294.4,2293.7,0.21817]
[1770132627266,2.41525067,2294.3,2293.7,0.21817]
[1770132627466,2.41525067,2294.3,2292.8,2.50191573]
[1770132627661,2.41525067,2294.0,2293.3,0.2182]
[1770132628064,5.00153174,2293.7,2293.3,0.2182]
[1770132628457,1.88909107,2293.5,2292.8,2.50191573]
[1770132628667,2.41525067,2293.7,2292.8,2.50191573]
[1770132628856,4.30434174,2293.7,2292.4,2.50191573]
[1770132629062,2.41525067,2293.7,2292.4,2.50191573]
[1770132629360,2.41525067,2293.6,2292.3,2.50191573]
[1770132629564,2.41525067,2293.6,2292.8,0.21825]
[1770132629762,2.41525067,2293.5,2292.3,2.50191573]
[1770132629962,4.30434174,2293.5,2292.8,0.21825]
[1770132630162,4.30434174,2293.5,2292.9,0.21824]
[1770132630373,1.88909107,2293.1,2292.3,2.50191573]
[1770132630661,2.41525067,2293.4,2292.3,2.50191573]
[1770132630662,1.88909107,2293.0,2292.3,2.50191573]
[1770132630866,2.41525067,2293.4,2292.3,2.50191573]
[1770132631066,3.86577174,2293.4,2292.3,2.50191573]
[1770132631468,1.45052107,2292.9,2292.5,0.21828]
[1770132631669,2.41525067,2293.1,2291.9,2.50191573]
[1770132631967,3.86577174,2293.1,2291.9,2.50191573]
[1770132632166,0.94119107,2293.1,2292.1,2.50191573]
[1770132632463,2.41525067,2293.5,2292.5,0.21828]
[1770132632766,2.41525067,2293.2,2292.5,0.21828]
[1770132632966,2.41525067,2292.8,2291.7,2.50191573]
[1770132633166,2.41525067,2292.8,2292.2,0.21831]
[1770132633364,2.41525067,2292.8,2291.7,2.50191573]
[1770132633664,3.35644174,2292.7,2292.3,0.2183]
[1770132633968,0.94119107,2292.4,2291.5,0.0044458]
[1770132634164,3.35644174,2292.5,2292.1,0.21831]
[1770132634365,0.00444581,2292.7,2292.2,0.21831]
[1770132634366,2.41969648,2292.7,2292.2,0.21831]
[1770132634564,4.36,2293.1,2292.4,0.21829]
[1770132634765,4.36,2293.1,2292.5,0.21828]
[1770132634966,0.94119107,2292.6,2292.2,0.21831]
[1770132635167,4.36,2293.1,2292.2,0.21831]
[1770132635471,4.36,2293.1,2291.8,2.50191573]
[1770132635472,4.36540399,2293.1,2292.3,0.2183]
[1770132635767,0.49831107,2292.8,2292.4,0.21829]
[1770132635968,0.49831107,2293.0,2292.6,0.21827]
[1770132636168,4.36540399,2293.1,2292.7,0.21826]
[1770132636367,4.86371506,2293.1,2292.7,0.21826]
[1770132636566,0.49831107,2292.8,2292.0,2.50191573]
[1770132636768,0.49831107,2292.8,2292.5,0.21828]
[1770132636962,4.36540399,2293.1,2292.0,2.50191573]
[1770132637166,4.40148506,2293.1,2292.8,0.21825]
[1770132637371,0.00540399,2293.1,2292.3,2.50191573]
[1770132637571,3.99e-06,2293.1,2292.8,0.21825]
[1770132637768,2.41525067,2293.4,2292.9,0.21824]
[1770132638169,2.41525067,2293.4,2292.3,2.50191573]
[1770132638370,4.361,2293.6,2292.9,0.21824]
[1770132638571,4.361,2293.6,2293.0,0.21824]
[1770132638766,2.41525067,2293.5,2293.0,0.21824]
[1770132638973,2.41525067,2293.5,2292.6,0.21827]
[1770132640171,2.41525067,2293.5,2292.1,2.50191573]
[1770132640368,2.41525067,2293.5,2292.6,0.21826]
[1770132640573,2.41525067,2293.5,2292.0,0.21833]
[1770132640970,2.41525067,2293.2,2292.3,0.2183]
[1770132641467,2.41525067,2293.2,2291.5,0.0044458]
[1770132641468,2.41525067,2293.2,2291.6,2.50191573]
[1770132641771,2.41525067,2293.2,2292.4,0.21829]
[1770132642372,2.41525067,2293.2,2291.9,2.50191573]
[1770132642879,2.41525067,2293.2,2292.0,0.21833]
[1770132643075,4.36595932,2293.6,2291.7,0.21835]
[1770132643076,2.63349067,2293.0,2291.7,0.21835]
[1770132643779,2.63349067,2293.0,2291.5,0.0044458]
[1770132643978,2.41525067,2292.8,2291.2,0.2184]
[1770132644274,2.41525067,2292.6,2291.0,2.50191573]
[1770132644578,4.363,2292.5,2291.3,2.50191573]
[1770132644785,3.9154,2292.5,2292.1,0.21832]
[1770132645071,1.79249984,2292.5,2292.3,0.2183]
[1770132645277,0.89841368,2292.5,2291.8,2.50191573]
[1770132645477,3.68e-06,2292.5,2291.8,2.50684786]
[1770132645673,3.68e-06,2292.5,2292.3,0.2183]
[1770132646078,4.977,2293.3,2292.4,0.21829]
[1770132646278,2.41525067,2293.0,2291.8,2.72519786]
[1770132646579,2.41525067,2293.2,2291.9,2.72025573]
[1770132646775,4.977,2293.3,2291.9,2.50191573]
[1770132646970,4.977,2293.3,2292.7,0.21826]
[1770132647279,2.41525067,2293.8,2292.9,0.21824]
[1770132647482,43.21525067,2293.8,2292.9,0.21824]
[1770132648076,9.32e-06,2293.6,2292.9,2.50191573]
[1770132648280,9.32e-06,2293.6,2293.2,2.72012573]
[1770132648478,9.32e-06,2293.6,2292.6,3.82118494]
[1770132648479,9.32e-06,2293.6,2293.3,2.72012573]
[1770132648879,9.32e-06,2293.6,2292.6,3.82118494]
[1770132648880,2.41525999,2293.6,2292.6,3.82118494]
[1770132649180,9.32e-06,2293.6,2292.9,2.7589466]
[1770132649778,9.32e-06,2293.6,2292.2,3.82118494]
[1770132649779,9.32e-06,2293.6,2293.1,2.72013573]
[1770132649980,9.32e-06,2293.6,2293.3,2.50191573]
[1770132650481,9.341,2294.4,2293.3,2.50191573]
[1770132650780,9.341,2294.4,2293.6,2.70392118]
[1770132651283,0.308613,2294.1,2292.9,2.49518719]
[1770132651481,0.090483,2294.0,2292.9,0.00560791]
[1770132651784,0.090483,2294.0,2292.7,2.49518719]
[1770132651979,0.090483,2294.0,2292.6,2.71345719]
[1770132652180,0.00490974,2294.1,2293.0,2.71341719]
[1770132652378,0.00490974,2294.1,2293.1,2.71340719]
[1770132652583,0.00490974,2294.1,2293.1,2.71870254]
[1770132652979,0.00490974,2294.1,2293.3,2.71339719]
[1770132653781,9.341,2294.4,2293.6,2.71273017]
[1770132653985,9.341,2294.4,2293.7,2.71273017]
[1770132653986,4.363,2294.4,2293.7,2.71273017]
[1770132654879,4.363,2294.4,2293.1,0.00529535]
[1770132654880,4.36631164,2294.4,2293.3,2.48037994]
[1770132655079,4.36631164,2294.4,2293.1,0.00529535]
[1770132655278,4.36631164,2294.4,2293.2,2.45299513]
[1770132656882,4.36631164,2294.4,2293.4,2.43983288]
[1770132657687,4.36631164,2294.4,2293.3,0.2182]
[1770132657989,4.58442164,2294.4,2293.1,0.00529535]
[1770132658189,0.21813,2294.1,2292.7,0.21826]
[1770132658391,0.21813,2294.1,2292.6,2.42682352]
[1770132658392,0.21816,2293.8,2292.6,2.42682352]
[1770132658585,4.976,2294.0,2292.3,2.63223513]
[1770132658990,40.8,2293.9,2292.3,2.63223513]
[1770132659190,41.01815,2293.9,2292.3,2.63758585]
[1770132659390,3.04865488,2293.8,2292.3,2.63758585]
[1770132659591,40.8,2293.9,2292.5,2.62540895]
[1770132659891,41.01815,2293.9,2292.5,2.62540895]
[1770132660385,4.976,2294.0,2292.3,3.82653566]
[1770132660586,0.00331164,2294.4,2294.2,0.21812]
[1770132660786,5.16435365,2295.2,2293.0,3.82118494]
[1770132660787,4.989,2295.2,2294.3,2.39411432]
[1770132660989,0.21804,2295.1,2293.6,6.21529926]
[1770132661182,0.21804,2295.1,2293.6,2.39411432]
[1770132661692,0.21808,2294.7,2293.6,2.39884989]
[1770132661892,2.83049488,2294.7,2293.0,3.95733274]
[1770132662089,0.21816,2293.8,2292.3,2.38291525]
[1770132662283,9.358,2293.7,2292.5,2.37005106]
[1770132662795,9.57617,2293.7,2292.5,2.37005106]
[1770132662995,9.57617,2293.7,2292.5,2.37393035]
[1770132663298,9.358,2293.7,2292.5,2.59221035]
[1770132663595,9.358,2293.7,2292.5,2.37393035]
[1770132663990,9.358,2293.7,2292.5,2.59221035]
[1770132665193,9.358,2293.7,2292.7,2.55460269]
[1770132665399,9.57617,2293.7,2292.5,0.00387929]
[1770132665792,9.57617,2293.7,2291.6,5.03713047]
[1770132665793,0.21823,2293.1,2291.9,2.33634269]
[1770132666290,0.21823,2293.1,2291.5,0.21838]
[1770132666291,7.99484853,2293.5,2291.5,2.33634269]
[1770132666496,0.21825,2292.9,2291.5,2.33634269]
[1770132666695,0.21825,2292.9,2291.7,2.33634269]
[1770132666696,4.991,2292.8,2291.7,2.33634269]
[1770132666993,4.363,2292.7,2291.7,2.33634269]
[1770132667899,4.363,2292.7,2291.5,0.00395475]
[1770132668099,4.363,2292.7,2291.5,2.34029744]
[1770132668496,4.363,2292.7,2292.2,0.21831]
[1770132668694,4.363,2293.6,2292.8,2.22620638]
[1770132668898,4.363,2293.6,2293.0,0.21823]
[1770132669093,3.88635,2293.6,2292.4,3.82118494]
[1770132669298,4.363,2294.5,2293.5,0.21818]
[1770132669495,4.363,2294.5,2293.2,2.22104629]
[1770132669496,0.72287775,2294.4,2293.2,2.22104629]
[1770132669693,0.72781459,2294.4,2293.2,2.22452171]
[1770132670094,0.00493684,2294.4,2293.9,2.29349451]
[1770132670293,0.00493684,2294.4,2293.5,1.85052367]
[1770132670895,0.00493684,2294.4,2293.6,0.21818]
[1770132671098,3.094,2294.3,2293.2,1.85399909]
[1770132671800,3.094,2294.3,2293.2,2.07220909]
[1770132671995,3.094,2294.3,2293.4,1.61337708]
[1770132672400,43.894,2294.3,2293.4,1.61337708]
[1770132672700,43.894,2294.3,2293.2,0.00347542]
[1770132672903,0.15707394,2293.9,2292.6,1.38388452]
[1770132673099,43.894,2294.3,2292.2,4.03949494]
[1770132673100,0.21819,2293.6,2292.2,1.38388452]
[1770132673307,0.15707394,2293.4,2292.2,1.38388452]
[1770132673605,0.2182,2293.4,2291.7,1.1559419]
[1770132673999,0.21821,2293.3,2291.7,1.15991926]
[1770132674307,9.37,2293.5,2291.7,1.15991926]
[1770132674308,0.21824,2293.0,2291.7,1.15991926]
[1770132674803,5.16435365,2293.4,2291.7,1.15991926]
[1770132675104,9.37,2293.5,2292.2,0.93236446]
[1770132675304,9.37,2293.5,2292.2,1.15067446]
[1770132675503,45.96435365,2294.3,2292.7,1.13157423]
[1770132675706,0.00493684,2294.4,2292.9,0.91331423]
[1770132675905,5.00793684,2294.4,2293.5,0.91331423]
[1770132676103,5.00793684,2294.4,2293.5,0.91703385]
[1770132676299,45.80793684,2294.4,2293.5,0.91703385]
[1770132676504,45.80793684,2294.4,2293.5,0.00371962]
[1770132676701,46.02604684,2294.4,2293.1,0.91331423]
[1770132676903,0.21811,2294.3,2293.1,0.91331423]
[1770132677599,5.018,2294.2,2293.1,0.91331423]
[1770132677804,5.018,2294.2,2293.1,0.91523403]
[1770132678105,5.018,2294.2,2293.3,0.91417069]
[1770132678304,5.018,2294.2,2293.3,1.13237069]
[1770132680801,5.018,2294.2,2293.5,0.28821205]
[1770132681805,9.55249947,2294.2,2293.1,0.16940492]
[1770132682001,5.19328908,2294.2,2293.1,0.16940492]
[1770132682198,0.16928908,2294.1,2293.1,0.16940492]
[1770132682398,4.363,2294.4,2293.6,0.16748512]
[1770132682605,4.36729026,2294.4,2293.7,0.16748512]
[1770132682800,5.024,2294.8,2293.7,0.16748512]
[1770132683004,5.024,2294.8,2294.2,0.16748512]
[1770132683499,5.024,2294.8,2293.8,0.16748512]
[1770132683706,5.024,2294.8,2293.2,6.21060911]
[1770132683707,0.16928908,2294.6,2293.1,3.99058986]
[1770132683908,0.16928908,2294.2,2293.1,0.0019198]
[1770132684103,5.024,2294.8,2293.2,0.16748512]
[1770132684104,4.362,2294.1,2293.2,0.16748512]
[1770132684299,4.362,2294.1,2293.5,0.16748512]
[1770132684498,0.16952263,2295.6,2294.6,0.21808]
[1770132684706,0.16952263,2295.6,2294.0,4.03931494]
[1770132684902,0.16952263,2295.6,2294.0,7.72582797]
[1770132685206,0.16952263,2295.6,2294.1,3.82118494]
[1770132685399,0.17457072,2295.6,2294.4,0.2181]